bitfinex/quotes_ETHUSD_20260113
["timestamp","ask_amount","ask_price","bid_price","bid_amount"]
[1768320450387,0.246,3186.2,3185.2,3.13949816]
[1768320450695,3.13833793,3186.4,3185.2,6.27901844]
[1768320450870,6.27667586,3186.4,3185.3,0.62790184]
[1768320451414,6.27667586,3186.4,3185.2,3.13949816]
[1768320451688,6.27667586,3186.4,3185.2,3.38549816]
[1768320451993,9.41501379,3186.4,3185.2,0.246]
[1768320452363,2.02011738,3186.3,3185.2,0.246]
[1768320452890,8.01016599,3186.2,3184.9,0.001]
[1768320453096,12.55335172,3186.4,3184.1,0.16318513]
[1768320453097,8.01016599,3185.7,3184.1,0.16318513]
[1768320453276,0.246,3185.6,3184.1,0.16318513]
[1768320453466,0.246,3185.6,3184.1,0.001]
[1768320453863,2.26611738,3185.6,3184.2,3.14046474]
[1768320454090,2.26611738,3185.6,3184.3,3.14037189]
[1768320454396,6.27844922,3185.5,3184.4,0.62808366]
[1768320454598,6.27844922,3185.5,3184.1,0.001]
[1768320454800,6.52444922,3185.5,3184.1,0.001]
[1768320455986,11.66966964,3185.5,3184.1,0.001]
[1768320456698,8.53044503,3185.5,3184.1,0.001]
[1768320456899,2.00599581,3185.4,3184.1,0.001]
[1768320457082,2.00599581,3185.3,3184.1,0.001]
[1768320457487,0.246,3185.2,3184.1,0.001]
[1768320457685,2.00599581,3185.1,3184.1,0.001]
[1768320457993,2.00599581,3185.1,3184.4,0.001]
[1768320457994,0.246,3185.0,3184.4,0.001]
[1768320458417,2.25199581,3185.0,3184.4,0.001]
[1768320458717,2.25199581,3185.0,3184.1,0.001]
[1768320458718,2.00599581,3184.8,3184.1,0.001]
[1768320458955,2.00599581,3184.8,3183.8,0.001]
[1768320459086,2.00599581,3184.6,3183.8,0.001]
[1768320459282,2.25199581,3184.5,3183.8,0.001]
[1768320460688,2.00599581,3184.3,3183.8,0.001]
[1768320460890,0.246,3184.2,3183.8,0.001]
[1768320462210,6.44041084,3186.4,3183.8,0.001]
[1768320462211,5.14605065,3184.7,3183.8,0.001]
[1768320462395,2.25199581,3184.6,3183.8,0.001]
[1768320462597,2.25199581,3184.6,3183.1,3.14159153]
[1768320462800,2.00599581,3184.4,3183.0,6.28335859]
[1768320463000,2.00599581,3184.3,3183.0,6.93637449]
[1768320463216,2.00599581,3184.3,3183.0,3.79468427]
[1768320463418,2.00599581,3184.3,3182.9,0.2468004]
[1768320464128,2.00599581,3184.3,3182.9,3.38858885]
[1768320464432,2.00599581,3184.3,3182.9,0.2468004]
[1768320464634,2.00599581,3184.3,3182.9,0.0008004]
[1768320464798,2.00599581,3184.1,3182.9,0.0008004]
[1768320464999,2.00599581,3183.9,3182.9,0.0008004]
[1768320465528,2.00599581,3183.8,3182.9,0.0008004]
[1768320465728,2.25199581,3183.7,3182.2,0.246]
[1768320465916,0.0008004,3183.3,3182.4,3.14222956]
[1768320466233,0.0008004,3183.3,3182.2,0.246]
[1768320466456,2.00679621,3183.3,3182.2,0.246]
[1768320466730,0.0008004,3183.3,3182.2,0.246]
[1768320466935,6.28219624,3183.6,3182.4,2.02586602]
[1768320467238,6.28219624,3183.6,3182.9,0.00080048]
[1768320467400,3.14109812,3183.6,3182.9,0.00080048]
[1768320467812,6.28219624,3183.6,3182.9,0.00080048]
[1768320468010,0.00080048,3183.3,3182.3,3.14238129]
[1768320468329,0.00080048,3183.3,3182.4,0.03142282]
[1768320468734,0.00080048,3183.3,3182.4,0.246]
[1768320468919,0.00080048,3183.3,3182.4,3.38821251]
[1768320469323,0.00080048,3183.3,3182.0,3.14263982]
[1768320469324,2.00599581,3183.1,3182.0,3.14263982]
[1768320469523,6.23604861,3183.2,3182.0,3.14265025]
[1768320469524,2.00599581,3182.9,3182.0,3.14265025]
[1768320470131,2.00599581,3182.9,3181.9,3.14274904]
[1768320470337,2.00599581,3182.9,3181.9,3.14271127]
[1768320470635,2.00599581,3182.9,3181.7,3.14296219]
[1768320470835,2.00599581,3182.7,3181.3,0.246]
[1768320471036,2.00599581,3182.7,3181.4,9.76875495]
[1768320471237,3.14171256,3183.0,3181.4,9.76875495]
[1768320471534,0.246,3182.9,3181.5,0.82136529]
[1768320471733,0.246,3183.2,3182.5,0.001]
[1768320471914,2.00599581,3183.1,3182.5,0.001]
[1768320472108,2.00599581,3182.9,3181.5,0.03143171]
[1768320472311,2.00599581,3182.9,3181.4,9.76875495]
[1768320472312,2.25199581,3182.9,3181.4,9.76875495]
[1768320472710,2.00599581,3182.9,3181.4,6.6254847]
[1768320472906,2.00599581,3182.7,3181.4,6.6254847]
[1768320473107,2.00599581,3182.7,3181.5,0.03143171]
[1768320473336,0.51478835,3182.6,3181.5,0.66569164]
[1768320474958,6.28436762,3182.5,3181.6,3.14307266]
[1768320475118,3.38808972,3182.6,3181.5,6.28630359]
[1768320475321,8.28961948,3182.9,3181.5,6.28630359]
[1768320475718,5.14778474,3182.9,3181.6,0.246]
[1768320475923,5.14778474,3182.9,3181.7,0.96754751]
[1768320476238,8.28961948,3182.9,3181.7,0.96754751]
[1768320476810,3.14198636,3182.7,3181.5,6.53230359]
[1768320477029,2.00599581,3183.2,3181.6,0.03143072]
[1768320477308,0.246,3183.0,3181.5,6.53230359]
[1768320477515,5.14748864,3183.2,3181.6,0.79393672]
[1768320477945,8.28898147,3183.2,3181.6,0.79393672]
[1768320478316,8.28898147,3183.2,3181.7,1.04694118]
[1768320478518,2.00599581,3183.1,3181.8,0.246]
[1768320478718,2.00599581,3182.9,3181.5,6.28630359]
[1768320478917,0.246,3183.0,3181.5,6.53230359]
[1768320478918,8.28977109,3182.8,3181.5,6.53230359]
[1768320479146,2.00599581,3182.7,3181.6,0.65323036]
[1768320479648,2.00599581,3182.7,3181.2,0.79441938]
[1768320479649,2.00599581,3182.7,3181.3,3.1433238]
[1768320479819,2.00599581,3182.5,3181.2,0.246]
[1768320480019,2.25199581,3182.5,3181.3,3.14328395]
[1768320480224,2.25199581,3182.5,3181.4,0.0314327]
[1768320480425,2.00599581,3182.5,3181.5,3.14315278]
[1768320480625,2.00599581,3182.5,3181.5,6.28632424]
[1768320480850,2.00599581,3182.5,3181.5,3.14315278]
[1768320481022,6.2845651,3182.4,3181.1,6.31856904]
[1768320481223,3.14228255,3182.4,3181.2,0.246]
[1768320481635,6.2845651,3182.4,3181.2,0.246]
[1768320481832,2.00599581,3182.3,3181.2,0.246]
[1768320482035,6.2845651,3182.4,3181.2,0.246]
[1768320483030,6.2845651,3182.4,3181.3,6.28673812]
[1768320483331,8.29056091,3182.4,3181.3,3.14336906]
[1768320483727,5.14827836,3182.4,3181.3,6.28673812]
[1768320483934,8.29056091,3182.4,3181.4,0.65327381]
[1768320484520,8.29056091,3182.4,3181.3,3.14336906]
[1768320484521,2.00599581,3182.3,3181.2,3.38945246]
[1768320484720,2.00599581,3182.2,3180.2,0.7975898]
[1768320484943,1.9268922,3182.0,3181.0,3.14364385]
[1768320485258,1.9268922,3181.8,3180.5,6.28831944]
[1768320485422,1.9268922,3181.8,3180.6,0.62883194]
[1768320485625,1.9268922,3181.8,3181.5,0.001]
[1768320487553,1.9268922,3181.8,3180.7,6.28792404]
[1768320487724,1.9268922,3181.7,3180.7,3.14396202]
[1768320487926,3.1428783,3181.8,3179.5,0.7988366]
[1768320487927,1.9268922,3181.5,3179.5,0.7988366]
[1768320488126,1.9268922,3181.4,3179.6,1.0448366]
[1768320488344,0.50697705,3181.6,3180.6,3.14404872]
[1768320488547,0.50697705,3181.6,3180.6,6.28810958]
[1768320488743,0.50697705,3181.6,3180.7,0.62881096]
[1768320488988,1.9268922,3181.5,3180.7,0.62881096]
[1768320489158,1.9268922,3181.5,3180.7,0.246]
[1768320489328,1.9268922,3181.5,3180.6,0.246]
[1768320489528,1.9268922,3181.4,3180.6,0.246]
[1768320489949,1.9268922,3181.4,3180.4,0.246]
[1768320490761,3.65009895,3181.6,3180.4,0.246]
[1768320490958,2.43386925,3181.6,3180.4,0.246]
[1768320491159,5.57695369,3181.6,3180.4,0.246]
[1768320491347,5.57695369,3181.6,3180.5,6.28831944]
[1768320491528,0.3690712,3181.5,3180.5,6.94175138]
[1768320491728,5.06999456,3181.6,3180.5,6.94175138]
[1768320492061,1.9268922,3181.5,3180.6,0.246]
[1768320492455,1.9268922,3181.5,3180.5,3.14415972]
[1768320492882,1.9268922,3181.5,3180.2,0.246]
[1768320493177,1.9268922,3181.3,3180.2,3.39044]
[1768320493346,0.29252472,3181.4,3180.2,3.39044]
[1768320493347,1.9268922,3181.1,3180.2,0.585044]
[1768320493548,5.07049481,3181.1,3180.2,0.246]
[1768320493739,5.07049481,3181.1,3180.2,3.39043536]
[1768320493945,1.9268922,3181.1,3180.2,3.39043536]
[1768320494171,1.9268922,3181.1,3180.2,6.53489168]
[1768320494366,1.9268922,3181.0,3180.2,6.53489168]
[1768320494567,5.07018481,3181.4,3180.2,6.53489168]
[1768320494871,0.29264478,3181.3,3180.2,6.53489168]
[1768320495066,1.9268922,3182.3,3180.3,0.80150972]
[1768320495266,3.14231413,3182.4,3180.3,0.80150972]
[1768320495267,1.9268922,3182.0,3180.4,1.04808577]
[1768320495474,5.06986608,3181.7,3180.5,6.28831944]
[1768320495669,0.29260828,3181.6,3180.5,3.14415972]
[1768320496371,2.24780683,3181.6,3180.5,3.14415972]
[1768320496544,1.95519855,3181.6,3180.5,6.28831944]
[1768320496744,0.36912762,3181.5,3180.5,6.91715138]
[1768320497069,0.36912762,3181.5,3180.5,3.77299166]
[1768320497268,2.32432617,3181.5,3180.5,0.62883194]
[1768320497584,2.32432617,3181.5,3180.3,6.2887149]
[1768320497958,0.29282097,3181.4,3180.3,6.2887149]
[1768320498157,5.46755467,3181.5,3180.2,3.14441982]
[1768320498158,2.24802858,3181.3,3180.2,3.14441982]
[1768320498379,1.95519855,3181.3,3180.2,3.14441982]
[1768320498545,2.24807511,3181.2,3180.2,3.14441982]
[1768320498742,1.95519855,3181.2,3180.2,0.65350586]
[1768320498946,1.95519855,3181.2,3180.2,3.1444406]
[1768320499161,1.95519855,3181.2,3180.2,6.28889692]
[1768320499376,1.95519855,3181.2,3180.2,3.1444406]
[1768320499642,0.36912762,3181.5,3180.2,9.43335324]
[1768320499948,0.196,3181.5,3180.2,9.43335324]
[1768320500175,0.12202333,3181.5,3180.2,9.43335324]
[1768320500563,0.00613598,3181.5,3180.2,9.43335324]
[1768320500791,5.09832831,3181.6,3180.2,9.43335324]
[1768320501248,1.95519855,3181.6,3180.2,9.43335324]
[1768320501449,1.95519855,3181.6,3180.8,0.001]
[1768320501450,0.29292499,3181.5,3180.8,0.001]
[1768320501651,5.09833908,3181.6,3180.8,0.001]
[1768320501992,0.29492651,3181.5,3180.8,0.001]
[1768320502148,0.002,3181.5,3180.8,0.001]
[1768320503099,1.95719855,3181.5,3180.8,0.001]
[1768320503574,0.002,3181.5,3180.9,6.28752868]
[1768320503755,0.002,3181.8,3181.0,0.63199673]
[1768320504168,3.14264382,3182.1,3181.0,0.63199673]
[1768320504367,0.002,3182.6,3180.2,0.38455304]
[1768320504368,1.95519855,3182.5,3180.2,0.38455304]
[1768320504553,6.28624468,3182.6,3180.8,3.14386317]
[1768320504554,1.95519855,3182.3,3180.8,3.14386317]
[1768320504754,0.246,3182.3,3180.9,1.95337178]
[1768320504954,0.246,3182.3,3180.9,2.16793414]
[1768320505161,2.24822634,3182.2,3180.9,0.246]
[1768320505379,1.95519855,3182.2,3180.9,0.246]
[1768320505595,6.28555264,3181.9,3180.9,0.246]
[1768320505888,0.246,3181.8,3180.9,6.28751299]
[1768320506177,0.29311984,3181.7,3180.8,3.14386026]
[1768320506389,3.3627509,3182.1,3180.9,6.31896152]
[1768320506390,3.14264691,3182.1,3180.9,6.31896152]
[1768320506577,0.53917708,3182.0,3181.0,0.63189615]
[1768320506777,0.246,3182.0,3181.0,0.63189615]
[1768320507790,6.28436762,3182.5,3181.1,6.28713338]
[1768320508090,0.53923653,3182.4,3181.1,8.20906752]
[1768320508289,0.29323222,3182.3,3181.1,8.20906752]
[1768320508478,0.246,3182.4,3181.2,0.88409637]
[1768320508677,0.13620931,3182.3,3181.2,0.88409637]
[1768320508876,1.95519855,3182.2,3181.0,0.63189615]
[1768320509079,1.95519855,3182.2,3180.4,2.16793414]
[1768320509381,6.28436762,3182.5,3181.0,6.28733102]
[1768320509677,0.246,3182.1,3181.0,3.14366551]
[1768320509879,3.14267756,3182.0,3180.8,6.28772634]
[1768320510078,6.28535512,3182.0,3180.8,6.28772634]
[1768320510247,6.28535512,3182.0,3180.9,0.62877263]
[1768320510452,8.24055367,3182.0,3180.9,0.62877263]
[1768320510653,5.09787611,3182.0,3180.9,0.62877263]
[1768320511091,8.24055367,3182.0,3180.9,0.62877263]
[1768320511393,8.24055367,3182.0,3180.9,0.87477263]
[1768320511562,5.09787611,3182.0,3181.0,0.7162499]
[1768320512294,1.95519855,3181.9,3180.3,1.92193414]
[1768320512494,1.95519855,3181.9,3180.5,0.246]
[1768320512663,1.95519855,3181.9,3180.4,3.14419463]
[1768320512866,1.95519855,3181.9,3180.4,0.246]
[1768320513362,1.95519855,3181.9,3179.9,1.92193414]
[1768320513363,1.95519855,3181.9,3180.6,3.14398222]
[1768320513555,1.95519855,3181.7,3180.7,3.1439468]
[1768320513956,1.95519855,3181.7,3180.1,6.2891104]
[1768320513957,6.28634292,3181.5,3180.1,6.2891104]
[1768320514157,6.28634292,3181.5,3180.1,6.32055595]
[1768320514158,6.53234292,3181.5,3180.1,6.32055595]
[1768320514474,1.95519855,3181.4,3180.1,6.2891104]
[1768320515186,1.95519855,3181.4,3180.1,3.1445552]
[1768320515383,2.40593733,3181.3,3180.2,0.65351819]
[1768320515585,2.40593733,3181.3,3180.1,3.1445552]
[1768320515795,2.40593733,3181.3,3180.0,3.14463165]
[1768320516098,2.03621547,3181.1,3180.1,0.03144555]
[1768320516600,2.03621547,3181.1,3180.5,0.001]
[1768320516904,2.03621547,3181.1,3179.8,3.1447824]
[1768320516905,2.03621547,3180.9,3179.8,3.14481618]
[1768320517064,2.03621547,3180.9,3179.5,2.2692905]
[1768320517264,2.03621547,3180.9,3179.9,3.14468306]
[1768320517661,2.03621547,3180.9,3180.0,3.14465159]
[1768320517861,2.03621547,3180.9,3179.8,3.14479217]
[1768320518062,3.14396202,3180.7,3179.8,3.27427471]
[1768320518262,6.28792404,3180.7,3179.8,0.62898254]
[1768320518705,8.32413951,3180.7,3179.6,3.145029]
[1768320518863,8.32413951,3180.7,3179.5,0.246]
[1768320519065,3.14396202,3180.7,3179.8,3.14484382]
[1768320519273,6.28792404,3180.7,3179.8,3.14484382]
[1768320519514,6.28792404,3180.7,3179.7,3.14491131]
[1768320519702,8.32413951,3180.7,3179.7,3.79850585]
[1768320520007,2.03621547,3180.6,3179.7,0.65359454]
[1768320520212,3.14415972,3180.5,3179.7,3.79854115]
[1768320520411,3.14415972,3180.5,3179.1,2.0232905]
[1768320520412,8.32453491,3180.5,3179.1,2.0232905]
[1768320520570,2.03621547,3180.4,3179.2,3.16795782]
[1768320520880,2.03621547,3180.4,3179.2,3.16794981]
[1768320521081,2.03621547,3180.4,3179.2,0.02256467]
[1768320521283,2.03621547,3180.2,3179.2,0.02256467]
[1768320521481,2.03621547,3180.2,3179.3,3.14528536]
[1768320521706,2.03621547,3180.2,3179.2,0.02256467]
[1768320522191,2.03621547,3180.0,3179.2,0.02256467]
[1768320522404,2.03621547,3179.8,3179.2,0.02256467]
[1768320524417,3.14495078,3179.7,3179.2,0.02256467]
[1768320524622,5.18116625,3179.7,3179.2,0.02256467]
[1768320524823,2.03621547,3179.6,3179.2,0.02256467]
[1768320525315,0.246,3179.9,3179.2,0.02256467]
[1768320525521,2.03621547,3180.2,3179.2,0.02256467]
[1768320525704,0.44962155,3180.1,3179.2,0.02256467]
[1768320525905,2.48583702,3180.1,3178.5,2.2692905]
[1768320526106,2.28221547,3180.1,3178.8,3.14576795]
[1768320526313,6.28800896,3180.3,3178.7,2.0232905]
[1768320526314,6.28930816,3180.0,3178.7,2.0232905]
[1768320527221,8.32552363,3180.0,3178.6,6.29207826]
[1768320527407,2.03621547,3179.9,3178.6,6.29207826]
[1768320527602,2.03621547,3179.8,3178.7,0.65380783]
[1768320528121,2.52766616,3182.5,3178.8,2.0232905]
[1768320528122,2.28221547,3180.4,3178.8,2.0232905]
[1768320528421,2.28221547,3180.4,3178.9,6.29148446]
[1768320528422,2.03621547,3180.2,3178.9,6.29148446]
[1768320528628,5.18007864,3180.8,3179.0,2.05474693]
[1768320528920,5.18007864,3180.8,3179.2,2.0232905]
[1768320528921,2.03621547,3180.8,3179.2,2.0232905]
[1768320529123,2.03621547,3180.8,3179.1,0.27745544]
[1768320529124,2.03621547,3180.8,3179.4,2.0232905]
[1768320530186,0.002,3181.0,3179.4,2.0232905]
[1768320530390,0.002,3181.0,3179.7,2.0232905]
[1768320530635,2.03821547,3181.0,3179.6,9.43514907]
[1768320530928,2.03821547,3181.0,3179.7,0.246]
[1768320531129,2.03821547,3181.0,3179.8,1.17044396]
[1768320531504,2.03621547,3180.8,3179.8,1.17044396]
[1768320531702,2.03621547,3180.7,3179.8,0.246]
[1768320532404,3.14406086,3180.6,3179.8,3.39082847]
[1768320532600,5.18021078,3180.7,3179.8,6.53568034]
[1768320532840,2.03621547,3180.7,3179.8,6.53568034]
[1768320533133,5.18018436,3180.7,3179.9,0.65356803]
[1768320533497,3.14394437,3180.8,3179.9,0.65356803]
[1768320534002,3.1437965,3180.9,3179.9,0.89956803]
[1768320534206,6.287593,3180.9,3179.9,0.89956803]
[1768320534712,6.28933102,3181.0,3179.9,4.04422587]
[1768320534902,6.28933102,3181.0,3180.0,0.71890543]
[1768320535653,3.14566551,3181.0,3180.0,0.71890543]
[1768320536410,0.002,3181.0,3180.0,0.71890543]
[1768320536615,9.43112717,3181.6,3180.1,2.0232905]
[1768320536616,6.28614532,3181.6,3180.1,2.0232905]
[1768320536818,6.53214532,3181.6,3180.3,2.0232905]
[1768320537124,0.246,3181.6,3180.4,3.41495645]
[1768320537361,2.03621547,3182.1,3180.5,2.0232905]
[1768320537645,2.03621547,3182.4,3180.5,2.0232905]
[1768320538557,3.14218381,3182.5,3180.5,2.0232905]
[1768320538720,0.002,3182.6,3180.9,2.0232905]
[1768320538908,0.002,3182.6,3180.8,12.57545268]
[1768320538909,0.002,3182.6,3181.1,2.0232905]
[1768320539110,6.28306932,3183.2,3181.9,2.0232905]
[1768320539411,6.28306932,3183.2,3182.0,0.246]
[1768320539605,3.14223474,3183.3,3182.0,0.246]
[1768320539925,0.00080048,3183.3,3182.0,2.2692905]
[1768320540230,0.00080048,3183.3,3182.2,2.0232905]
[1768320540857,0.00080048,3183.3,3182.1,0.22692905]
[1768320540858,2.03701595,3183.3,3182.1,0.22692905]
[1768320541151,2.03701595,3183.3,3181.1,2.0232905]
[1768320541152,2.06767106,3183.2,3181.1,2.0232905]
[1768320541302,2.06767106,3183.2,3181.0,1.45987432]
[1768320541303,2.03621547,3183.2,3181.4,3.14325455]
[1768320541507,2.03621547,3183.2,3181.3,5.16664942]
[1768320541716,2.03621547,3183.0,3181.4,3.93046788]
[1768320541977,2.03821547,3182.1,3180.5,2.0232905]
[1768320542116,0.002,3182.1,3180.7,2.0232905]
[1768320542314,0.002,3182.1,3180.9,2.0232905]
[1768320542549,0.00274109,3181.0,3180.9,2.0232905]
[1768320542837,6.2865651,3182.4,3181.0,6.28733102]
[1768320543183,2.86849353,3182.3,3180.9,3.14373712]
[1768320543456,2.03621547,3182.2,3181.0,0.246]
[1768320543657,2.06767106,3182.1,3180.5,2.0232905]
[1768320544021,2.03621547,3181.9,3180.2,3.14444782]
[1768320544221,2.03621547,3181.7,3180.3,0.246]
[1768320544457,2.26905833,3181.6,3180.3,0.246]
[1768320544679,2.51505833,3181.6,3180.2,0.246]
[1768320544821,1.99435756,3181.4,3179.7,2.0232905]
[1768320545021,1.99435756,3181.4,3179.8,6.53570374]
[1768320545246,1.99435756,3181.4,3179.8,3.39085187]
[1768320545522,1.99435756,3181.2,3179.5,3.14509763]
[1768320545741,1.99435756,3181.2,3179.6,0.246]
[1768320545961,2.28664455,3181.1,3179.6,0.246]
[1768320546257,1.99435756,3181.1,3179.6,0.246]
[1768320546419,2.28664911,3181.0,3179.6,0.246]
[1768320546622,2.22302247,3180.9,3179.3,2.04088959]
[1768320546825,1.99435756,3180.7,3179.0,0.001]
[1768320547132,1.99435756,3180.7,3179.1,0.246]
[1768320547342,1.99435756,3180.5,3179.1,0.246]
[1768320547535,1.99435756,3180.3,3178.5,3.14606491]
[1768320547856,1.99435756,3180.1,3178.9,0.246]
[1768320548225,1.99435756,3180.1,3178.6,3.14600753]
[1768320548426,2.28661694,3180.0,3178.6,3.14600753]
[1768320548636,1.99435756,3180.0,3178.4,3.39216582]
[1768320548835,1.99435756,3180.0,3178.5,3.14607124]
[1768320549043,1.99435756,3179.8,3178.6,0.33920712]
[1768320550106,6.4889417,3179.9,3178.6,0.33920712]
[1768320550308,3.144641,3180.1,3178.7,2.07234899]
[1768320550510,3.39048314,3180.2,3178.7,2.07234899]
[1768320550675,6.53496628,3180.2,3178.7,2.07234899]
[1768320550881,8.28366572,3180.0,3178.8,6.29168238]
[1768320551100,8.28366572,3180.0,3178.6,0.33920712]
[1768320551275,0.82836657,3179.9,3178.7,0.2774594]
[1768320551883,0.076804,3178.9,3178.7,0.2774594]
[1768320552283,1e-08,3178.9,3178.7,0.2774594]
[1768320552499,2.82272413,3179.9,3178.7,0.2274594]
[1768320553017,9.43455561,3179.8,3178.7,0.2274594]
[1768320553183,2.986636,3179.7,3178.5,0.246]
[1768320553384,2.986636,3179.7,3178.5,3.39207524]
[1768320553893,2.986636,3179.7,3178.5,0.246]
[1768320554099,2.986636,3179.7,3178.6,3.1459601]
[1768320554444,6.28970374,3179.8,3178.7,3.16165357]
[1768320554721,6.28970374,3179.8,3178.6,3.14594921]
[1768320555016,3.14485187,3179.8,3179.0,0.001]
[1768320555316,1.99435756,3179.8,3179.0,0.001]
[1768320555637,6.28964556,3179.9,3179.0,0.001]
[1768320555935,6.91861012,3179.9,3179.0,0.001]
[1768320556099,3.14482278,3179.9,3179.0,0.001]
[1768320556424,5.297486,3180.8,3179.0,0.001]
[1768320556665,0.246,3180.5,3179.0,0.001]
[1768320556799,2.15356884,3180.4,3179.0,0.001]
[1768320557005,6.26420935,3180.5,3179.0,0.001]
[1768320557006,11.58723444,3180.1,3179.0,0.001]
[1768320557200,1.40472344,3180.0,3179.0,0.001]
[1768320558219,0.246,3180.0,3179.0,0.001]
[1768320558386,6.2891104,3180.1,3179.0,0.001]
[1768320559090,11.5869378,3180.2,3179.0,0.001]
[1768320559423,2.15356884,3180.1,3179.0,0.001]
[1768320561183,9.43396224,3180.0,3179.0,0.001]
[1768320561388,1.15875311,3179.9,3179.0,0.001]
[1768320562027,3.14465408,3180.0,3179.0,0.01671718]
[1768320562231,3.14465408,3180.0,3178.3,2.27279482]
[1768320562232,8.17177819,3179.9,3178.3,2.27279482]
[1768320562528,2.15356884,3179.9,3178.7,3.14588248]
[1768320562722,2.15356884,3179.9,3178.5,3.14607158]
[1768320562911,2.15356884,3179.9,3178.4,3.1461988]
[1768320563116,6.29009938,3179.6,3178.5,3.70681776]
[1768320563295,3.14504969,3179.6,3178.5,6.85295587]
[1768320563495,2.15356884,3180.5,3178.6,2.02579482]
[1768320563841,9.67877574,3180.4,3178.6,2.02579482]
[1768320564420,2.15356884,3180.3,3178.6,2.02579482]
[1768320564639,2.15356884,3180.1,3178.7,1.13387507]
[1768320564834,2.15356884,3180.0,3178.7,0.88787507]
[1768320565156,6.28990156,3179.7,3178.5,3.39212069]
[1768320565363,6.28990156,3179.7,3178.5,6.5382588]
[1768320565530,2.15356884,3179.6,3178.3,0.001]
[1768320565934,2.15356884,3179.6,3178.5,3.14611403]
[1768320566129,2.15356884,3179.6,3178.6,0.3146114]
[1768320566356,6.28990156,3179.7,3178.6,0.3146114]
[1768320567080,3.14495078,3179.7,3178.6,2.58640622]
[1768320567221,6.28930816,3180.0,3178.7,6.29188032]
[1768320567958,9.43396224,3180.0,3178.7,3.14594016]
[1768320568163,11.58753108,3180.0,3178.8,0.88783649]
[1768320568363,11.58753108,3180.0,3178.7,0.246]
[1768320568559,2.15356884,3179.9,3178.7,0.246]
[1768320569062,0.246,3180.1,3178.8,6.29168238]
[1768320569260,6.28930816,3180.0,3178.8,6.29168238]
[1768320569463,2.15356884,3179.9,3178.6,0.3146114]
[1768320569677,2.15356884,3179.9,3178.7,3.14592802]
[1768320570389,2.15356884,3179.9,3179.0,0.001]
[1768320570587,0.002,3179.8,3179.0,0.001]
[1768320570786,2.15356884,3179.3,3178.3,0.001]
[1768320571088,6.29089078,3179.2,3178.3,0.001]
[1768320572081,3.14544539,3179.2,3178.3,0.001]
[1768320572400,2.40209268,3179.2,3178.3,0.20367948]
[1768320572690,5.54753807,3179.2,3178.3,0.20367948]
[1768320573094,5.54753807,3179.2,3178.4,0.246]
[1768320573296,9.43526529,3179.6,3178.4,0.246]
[1768320573495,9.43526529,3179.6,3178.3,0.44967948]
[1768320573496,0.29349259,3179.5,3178.3,0.44967948]
[1768320573698,0.29349259,3179.4,3178.3,0.44967948]
[1768320574007,6.01820935,3179.2,3177.7,3.14685604]
[1768320574305,2.44706143,3179.1,3177.9,3.14666934]
[1768320574454,0.29349259,3179.0,3177.5,2.02659602]
[1768320574657,0.29373547,3178.9,3177.7,3.14692918]
[1768320574888,0.246,3179.2,3178.0,3.14657341]
[1768320575090,2.29002976,3179.1,3177.8,0.31469292]
[1768320575259,8.58131632,3179.0,3177.8,3.46146004]
[1768320575468,2.29002976,3178.9,3177.8,0.31469292]
[1768320575667,0.29373744,3178.8,3177.7,3.39284568]
[1768320575890,0.29373744,3178.8,3177.8,3.14679081]
[1768320576089,6.29128656,3179.0,3177.8,3.1468059]
[1768320576273,0.29413118,3178.9,3177.8,3.1468059]
[1768320576473,0.29413118,3178.8,3177.8,3.1468059]
[1768320576687,0.2940794,3178.7,3177.9,0.54478971]
[1768320576881,6.29128656,3179.0,3177.9,0.54478971]
[1768320577078,0.29408616,3178.9,3177.9,0.54478971]
[1768320577275,3.14594016,3178.7,3178.0,3.1466331]
[1768320577604,0.2941336,3178.6,3177.8,3.14676248]
[1768320577822,0.29413989,3178.5,3177.5,0.0008012]
[1768320577982,0.29413989,3178.4,3177.5,0.0008012]
[1768320578298,1.99629232,3178.6,3177.5,0.0008012]
[1768320578592,0.29385192,3178.5,3177.6,3.146999]
[1768320578798,0.29385192,3178.4,3177.5,0.0008012]
[1768320578964,1.99629232,3178.6,3177.5,0.0008012]
[1768320579167,6.53888032,3178.7,3177.5,3.14792314]
[1768320581199,8.28856854,3178.5,3177.5,0.0008012]
[1768320581403,6.29227622,3178.5,3177.5,0.0008012]
[1768320581602,9.43841433,3178.5,3177.5,0.0008012]
[1768320581801,6.29227622,3178.5,3177.5,0.0008012]
[1768320582672,3.14613811,3178.5,3177.6,0.246]
[1768320582869,3.14613811,3178.5,3177.7,0.23018924]
[1768320583180,5.88592276,3178.6,3177.7,2.28528039]
[1768320583368,0.03932548,3178.6,3177.7,5.43217707]
[1768320583569,6.33066489,3179.0,3177.8,2.05509115]
[1768320583906,9.47636596,3179.0,3177.8,2.05509115]
[1768320584106,9.43704542,3179.0,3177.9,0.22852804]
[1768320584302,6.29134435,3179.0,3177.9,0.22852804]
[1768320584769,9.43704542,3179.0,3177.9,0.22852804]
[1768320585105,11.43333774,3179.0,3178.0,0.001]
[1768320585301,0.002,3178.6,3178.0,0.001]
[1768320585908,0.002,3178.9,3178.0,2.05609115]
[1768320586116,0.002,3178.9,3178.2,2.05509115]
[1768320587091,0.002,3178.9,3178.2,2.30109115]
[1768320587667,0.002,3178.9,3178.2,0.246]
[1768320587868,1.99829232,3178.9,3178.1,0.85780831]
[1768320588072,1.99829232,3178.9,3178.0,0.001]
[1768320588073,0.002,3178.9,3178.0,0.001]
[1768320588284,0.002,3178.9,3178.0,3.14755267]
[1768320588886,0.002,3178.9,3178.0,0.001]
[1768320589786,3.14495078,3179.7,3178.1,2.05509115]
[1768320589990,6.28990156,3179.7,3178.3,2.05509115]
[1768320591178,0.2934511,3179.6,3178.4,0.246]
[1768320591378,6.28990156,3179.7,3178.4,2.30109115]
[1768320591621,3.1451486,3179.5,3178.5,6.29227622]
[1768320591914,3.1451486,3179.5,3178.6,0.246]
[1768320592078,3.1451486,3179.5,3178.6,0.79072293]
[1768320592824,0.03931559,3179.4,3178.6,0.54472293]
[1768320592980,0.03931683,3179.3,3178.2,0.20560911]
[1768320593487,11.43173812,3179.5,3178.3,3.3923245]
[1768320593688,6.2906929,3179.3,3178.3,0.246]
[1768320593888,8.28698522,3179.3,3178.3,0.246]
[1768320594088,8.28698522,3179.3,3178.3,3.39231213]
[1768320594278,0.29361216,3179.2,3178.3,6.89844034]
[1768320594610,5.14163877,3179.3,3178.3,3.75210425]
[1768320594908,8.28698522,3179.3,3178.3,0.60579212]
[1768320595113,8.28698522,3179.3,3178.3,0.246]
[1768320595283,0.2936326,3179.2,3178.3,0.246]